fUST/lending_fUST_20240509
["ID","MTS","AMOUNT","RATE_DAILY","PERIOD"]
[326698210,1715257873184,-10000.0,0.000999,120]
[326698211,1715257873193,-1000.0,0.00099999,120]
[326698212,1715257873203,-1116.10948192,0.001,120]
[326698213,1715257873213,-1000.0,0.001,120]
[326698214,1715257873222,-1998.29512078,0.001,120]
[326698215,1715257873232,-1000.00000099,0.001,120]
[326698216,1715257873242,-63497.13057076,0.001,120]
[326698217,1715257873251,-151.0,0.001,120]
[326698218,1715257873261,-1792.89,0.00101369,120]
[326698219,1715257873271,-1792.89,0.00104109,120]
[326698220,1715257873280,-390.719587,0.00105119,120]
[326698221,1715257873292,-151.0,0.0010663,120]
[326698222,1715257873302,-1792.89,0.00106849,120]
[326698223,1715257873311,-1792.89,0.00109589,120]
[326698224,1715257873321,-166.394239,0.00110502,2]
[326698225,1715257873332,-390.719587,0.00111493,120]
[326698226,1715257873341,-1792.89,0.00112328,120]
[326698227,1715257873351,-157.494708,0.00112767,120]
[326698228,1715257873361,-1000.0,0.0011374,120]
[326698229,1715257873372,-166.666666,0.00114986,120]
[326698230,1715257873382,-1792.89,0.00115068,120]
[326698231,1715257873391,-1792.89,0.00117808,120]
[326698232,1715257873400,-390.719587,0.00117866,120]
[326698233,1715257873409,-1792.89,0.00120547,120]
[326698234,1715257873419,-1792.89,0.00123287,120]
[326698235,1715257873428,-390.719587,0.0012424,120]
[326698236,1715257873438,-5000.0,0.001249,120]
[326698237,1715257873448,-151.0,0.00125507,120]
[326698238,1715257873457,-166.394239,0.00125723,2]
[326698239,1715257873467,-1792.89,0.00126027,120]
[326698240,1715257873476,-7785.10402939,0.00128,60]
[326698241,1715257873485,-1792.89,0.00128767,120]
[326698242,1715257873495,-390.719587,0.00130613,120]
[326698243,1715257873505,-1793.05791995,0.00131506,120]
[326698244,1715257873514,-162.877953,0.00136986,120]
[326698245,1715257873524,-175.305256,0.00136986,120]
[326698246,1715257873535,-157.494708,0.00136986,120]
[326698247,1715257873544,-206.290209,0.00136986,120]
[326698248,1715257873554,-166.666666,0.00136986,120]
[326698249,1715257873563,-166.666666,0.00136986,120]
[326698250,1715257873575,-390.719587,0.00136987,120]
[326698251,1715257873584,-166.394239,0.00140944,2]
[326698252,1715257873594,-440.0,0.00142112,120]
[326698253,1715257873604,-151.0,0.00144384,120]
[326698254,1715257873613,-198514.31376261,0.0015,120]
[326698255,1715257873623,-1998.29512078,0.0015,120]
[326698256,1715257873633,-1093.41953246,0.0015,120]
[326698257,1715257873642,-1000.0,0.00150684,7]
[326698258,1715257873652,-1000.0,0.00150684,7]
[326698259,1715257873661,-1000.0,0.00150684,7]
[326698260,1715257873670,-1000.0,0.00150684,7]
[326698261,1715257873680,-1000.0,0.00150684,7]
[326698262,1715257873690,-1000.0,0.00150684,7]
[326698263,1715257873700,-1000.0,0.00150684,7]
[326698264,1715257873710,-1000.0,0.00150684,7]
[326698265,1715257873719,-1000.0,0.00150684,7]
[326698266,1715257873729,-1000.0,0.00150684,7]
[326698267,1715257873738,-1000.0,0.00150684,7]
[326698268,1715257873748,-1000.0,0.00150684,7]
[326698269,1715257873758,-1000.0,0.00150684,7]
[326698270,1715257873767,-1000.0,0.00150684,7]
[326698271,1715257873777,-1000.0,0.00150684,7]
[326698272,1715257873787,-1000.0,0.00150684,7]
[326698273,1715257873796,-962.99745834,0.00150684,7]
[326698274,1715257873806,-1000.0,0.0015354,120]
[326698275,1715257873815,-166.394239,0.00156164,2]
[326698276,1715257873825,-736.5556989,0.001589,120]
[326698277,1715257873834,-151.0,0.0016326,120]
[326698278,1715257873843,-5000.0,0.001749,120]
[326698279,1715257873852,-628.19035384,0.0018,120]
[326698280,1715257873862,-151.0,0.00182137,120]
[326698281,1715257873872,-53386.69475657,0.0019,30]
[326698282,1715257873883,-161.86168819,0.00193,120]
[326698283,1715257873892,-5000.0,0.001989,120]
[326698284,1715257873902,-1000.0,0.00199308,120]
[326698285,1715257873912,-957.42597547,0.0019989,120]
[326698286,1715257873921,-1000.0,0.002,120]
[326698287,1715257873930,-25000.0,0.002,120]
[326698288,1715257873940,-1000.0,0.002,120]
[326698289,1715257873949,-1998.29512078,0.002,120]
[326698290,1715257873959,-1050.84845397,0.002,120]
[326698291,1715257873969,-20046.90974335,0.002,120]
[326698292,1715257873978,-155.60221331,0.002,120]
[326698293,1715257873988,-709.39024196,0.00200276,28]
[326698294,1715257873998,-151.0,0.00201014,120]
[326698295,1715257874008,-500.0,0.00202739,120]
[326698296,1715257874018,-380.0,0.0020813,120]
[326698297,1715257874028,-151.0,0.0021989,120]
[326698298,1715257874037,-666.0,0.0022,120]
[326698299,1715257874047,-307.4781096,0.00222712,120]
[326698300,1715257874056,-5000.0,0.00228,60]
[326698301,1715257874066,-4000.0,0.002349,120]
[326698302,1715257874076,-709.39024196,0.00237074,28]
[326698303,1715257874085,-151.0,0.00238767,120]
[326698304,1715257874095,-540325.25857372,0.00239,30]
[326698305,1715257874104,-1998.29512078,0.0025,120]
[326698306,1715257874114,-298.59094376,0.0025,120]
[326698307,1715257874124,-454.61795772,0.0025,120]
[326698308,1715257874134,-151.0,0.00257644,120]
[326698309,1715257874143,-4000.0,0.002599,120]
[326698310,1715257874154,-1000.0,0.0026212,120]
[326698311,1715257874163,-500.3,0.00265,120]
[326698312,1715257874173,-111284.54182075,0.00268,2]
[326698313,1715257874182,-15851.48963035,0.0027,120]
[326698314,1715257874192,-709.39024196,0.00273872,28]
[326698315,1715257874202,-1000.0,0.00273972,120]
[326698316,1715257874212,-1000.0,0.00273972,120]
[326698317,1715257874222,-1000.0,0.00273972,120]
[326698318,1715257874231,-1006.66619116,0.00273972,120]
[326698319,1715257874241,-300.0,0.00276427,120]
[326698320,1715257874250,-151.0,0.00276521,120]
[326698321,1715257874260,-700.0,0.0028,120]
[326698322,1715257874269,-4000.0,0.002849,120]
[326698323,1715257874285,-156.79615499,0.00289,120]
[326698324,1715257874295,-151.0,0.00295397,120]
[326698325,1715257874306,-1000.0,0.00299999,120]
[326698326,1715257874316,-2010.72470726,0.003,80]
[326698327,1715257874328,-850.0,0.003,120]
[326698328,1715257874338,-1000.0,0.003,120]
[326698329,1715257874347,-1998.29512078,0.003,120]
[326698330,1715257874356,-150.0,0.003,120]
[326698331,1715257874366,-48098.4496126,0.003,120]
[326698332,1715257874377,-40000.0,0.003,120]
[326698333,1715257874464,-25000.0,0.003,120]
[326698334,1715257874474,-455.78830497,0.003,120]
[326698335,1715257874485,-153.76094928,0.00307658,120]
[326698336,1715257874494,-151.0,0.00314274,120]
[326698337,1715257874504,-5000.0,0.00328,60]
[326698338,1715257874514,-666.0,0.0033,120]
[326698339,1715257874524,-100590.35921,0.00333,120]
[326698340,1715257874534,-151.0,0.00333151,120]
[326698341,1715257874543,-500.0,0.00339726,120]
[326698342,1715257874553,-500000.0,0.0034,30]
[326698343,1715257874562,-1000.0,0.00344726,120]
[326698344,1715257874572,-4000.0,0.003459,120]
[326698345,1715257874584,-200.0,0.00346471,120]
[326698346,1715257874593,-200.0,0.0035,120]
[326698347,1715257874603,-1998.29512078,0.0035,120]
[326698348,1715257874613,-50000.0,0.0035,120]
[326698349,1715257874622,-2502.50809365,0.0035,30]
[326698350,1715257874632,-150.0,0.0035,120]
[326698351,1715257874641,-151.0,0.00352027,120]
[326698352,1715257874651,-326.09242677,0.00352746,15]
[326698353,1715257874661,-11101.80378416,0.00359999,120]
[326698354,1715257874671,-151.0,0.00370904,120]
[326698355,1715257874681,-1000.0,0.0038,120]
[326698356,1715257874690,-500.0,0.00383561,120]
[326698357,1715257874701,-500.0,0.00383561,120]
[326698358,1715257874710,-500.0,0.00383561,120]
[326698359,1715257874720,-500.0,0.00383561,120]
[326698360,1715257874729,-500.0,0.00383561,120]
[326698361,1715257874739,-540.48257313,0.00383561,120]
[326698362,1715257874748,-156.79615499,0.00385,120]
[326698363,1715257874758,-500.06853125,0.00387,120]
[326698364,1715257874768,-3868.0,0.003888,120]
[326698365,1715257874778,-3868.0,0.003888,120]
[326698366,1715257874788,-3868.0,0.003888,120]
[326698367,1715257874797,-2645.108999,0.003888,120]
[326698368,1715257874807,-157.70418713,0.00389732,120]
[326698369,1715257874817,-151.0,0.00389781,120]
[326698370,1715257874829,-664.78592975,0.0039,120]
[326698371,1715257874838,-1256.83207107,0.0039,120]
[326698372,1715257874848,-250.0,0.0039,120]
[326698373,1715257874857,-10122.23072961,0.00396,120]
[326698374,1715257874867,-4000.0,0.003989,120]
[326698375,1715257874877,-503.79485709,0.00398989,120]
[326698376,1715257874887,-203.73101531,0.00399999,30]
[326698377,1715257874897,-650.0,0.004,120]
[326698378,1715257874907,-150.0,0.004,120]
[326698379,1715257874917,-2000.0,0.004,120]
[326698380,1715257874926,-273.71392309,0.004,120]
[326698381,1715257874936,-1998.29512078,0.004,120]
[326698382,1715257874945,-50000.0,0.004,120]
[326698383,1715257874955,-169.6312316,0.004,120]
[326698384,1715257874964,-4000.0,0.004,90]
[326698385,1715257874973,-7003.696678,0.004,90]
[326698386,1715257874983,-151.0,0.00408658,120]
[326698387,1715257874992,-150.2,0.00417939,120]
[326698388,1715257875002,-1000.0,0.0042,120]
[326698389,1715257875013,-1182.70407988,0.0042,120]
[326698390,1715257875023,-151.0,0.00427534,120]
[326698391,1715257875033,-354.0,0.0043,120]
[326698392,1715257875043,-500000.0,0.0044,30]
[326698393,1715257875053,-151.0,0.00446411,120]
[326698394,1715257875062,-11218.1264962,0.00446575,120]
[326698395,1715257875071,-17202.5467124,0.0045,30]
[326698396,1715257875081,-1998.29512078,0.0045,120]
[326698397,1715257875091,-50000.0,0.0045,120]
[326698398,1715257875100,-150.0,0.0045,120]
[326698399,1715257875110,-4000.0,0.004549,120]
[326698400,1715257875119,-4000.0,0.0046,90]
[326698401,1715257875128,-1000.0,0.00462681,120]
[326698402,1715257875137,-151.0,0.00465288,120]
[326698403,1715257875147,-1000.0,0.00465349,120]
[326698404,1715257875157,-163.51985392,0.0047549,120]
[326698405,1715257875166,-500.0,0.00476712,120]
[326698406,1715257875175,-149.999999,0.0047987,120]
[326698407,1715257875185,-3000.0,0.0048,90]
[326698408,1715257875195,-156.79615499,0.00481,120]
[326698409,1715257875204,-151.0,0.00484164,120]
[326698410,1715257875214,-1000.0,0.0048999,120]
[326698411,1715257875224,-2081.8412,0.0049,120]
[326698412,1715257875234,-222.0,0.0049,120]
[326698413,1715257875244,-150.2,0.00490614,120]
[326698414,1715257875254,-1218.0,0.005,120]
[326698415,1715257875264,-450.0,0.005,120]
[326698416,1715257875274,-1000.0,0.005,120]
[326698417,1715257875288,-949.18824511,0.005,5]
[326698418,1715257875297,-1998.87697492,0.005,120]
[326698419,1715257875307,-50000.0,0.005,120]
[326698420,1715257875317,-150.0,0.005,120]
[326698421,1715257875328,-797002.27507141,0.005,120]
[326698422,1715257875650,4308.8457694,9.999e-05,2]
[326698424,1715258531535,-154.94505041,0.00016383,2]
[326698425,1715258531588,-2674.57927242,0.00017999,2]
[326698426,1715258531756,-236.56307163,0.00018266,2]
[326698427,1715258531800,-41680.0,0.00018267,2]
[326698428,1715258531845,-24900.0,0.00018268,2]
[326698429,1715258531891,-171.11304447,0.0001909,2]
[326698430,1715258531934,-163.0595282,0.00019187,2]
[326698431,1715258531978,-443.36890128,0.0001919,2]
[326698432,1715258532026,-309.2161094,0.00019287,2]
[326698433,1715258532070,-154.72324417,0.00019287,2]
[326698434,1715258532114,-1333.36359115,0.00019287,2]
[326698435,1715258532158,-154.76784823,0.00019287,2]
[326698436,1715258532202,-155.21834635,0.00019287,2]
[326698437,1715258532246,-379.91489838,0.00019288,2]
[326698438,1715258532290,-6948.26858913,0.00019288,2]
[326698439,1715258532333,-494.317,0.00019334,2]
[326698440,1715258532376,-67507.49755129,0.0002,2]
[326698441,1715258532422,-947.89056519,0.0002,2]
[326698442,1715258532468,-1036.86492692,0.00020912,2]
[326698443,1715258532512,-1881.6796197,0.00020913,2]
[326698444,1715258532555,-3473.19919608,0.000215,6]
[326698445,1715258532600,-166.666666,0.00021644,2]
[326698446,1715258532644,-202.05848975,0.00021698,2]
[326698447,1715258532688,-166.666666,0.00021918,2]
[326698448,1715258532735,-159.42165086,0.00022,2]
[326698449,1715258532781,-166.666666,0.00022431,2]
[326698450,1715258532827,-166.666666,0.00022944,2]
[326698451,1715258532869,-714.82665538,0.00023,2]
[326698452,1715258532913,-166.666666,0.00023456,2]
[326698453,1715258532953,-166.666666,0.00023969,2]
[326698454,1715258532995,-166.666666,0.00024482,2]
[326698455,1715258533038,-200.0,0.00024658,15]
[326698456,1715258533082,-3967.59701801,0.00024756,2]
[326698457,1715258533127,-10617.1807173,0.00024756,2]
[326698458,1715258533174,-696.23986202,0.00024756,2]
[326698459,1715258533218,-190.05602608,0.00025,2]
[326698460,1715258533262,-400.02877114,0.00025,2]
[326698461,1715258533306,-1454.42684491,0.00025,2]
[326698462,1715258533351,-320.68043693,0.00025,2]
[326698463,1715258533398,-166.666666,0.00026986,2]
[326698464,1715258533450,-358.5766605,0.00027,2]
[326698465,1715258533496,-424.50332659,0.00028,2]
[326698466,1715258533539,-309.13439283,0.0003,4]
[326698467,1715258533580,-237.77204166,0.0003,4]
[326698468,1715258533622,-154.70605849,0.0003,4]
[326698469,1715258533666,-24564.10583337,0.0003,10]
[326698470,1715258533708,-802.08990641,0.0003,120]
[326698471,1715258533751,-160.0,0.0003,2]
[326698472,1715258533797,-639.42689636,0.00032,4]
[326698473,1715258533842,-235.71361189,0.0003224,120]
[326698474,1715258533890,-466.94535979,0.00034,4]
[326698475,1715258533933,-5926.67301087,0.00035,4]
[326698476,1715258533976,-322.07196136,0.00035,30]
[326698477,1715258534092,-854.9131085,0.00035,2]
[326698478,1715258534139,-214.86476744,0.00035,4]
[326698479,1715258534183,-163.0595282,0.00035516,2]
[326698480,1715258534226,-55555.0,0.00035516,5]
[326698481,1715258534269,-2000.0,0.00035516,2]
[326698482,1715258534313,-68419.78,0.00035616,3]
[326698483,1715258534356,-57016.49,0.00035616,3]
[326698484,1715258534405,-47513.74,0.00035616,3]
[326698485,1715258534455,-39594.78,0.00035616,3]
[326698486,1715258534502,-154.70605849,0.0003589,2]
[326698487,1715258534546,-3395.31174,0.00037,2]
[326698488,1715258534589,-295.88177251,0.0004,15]
[326698489,1715258534635,-356.76011624,0.0004,4]
[326698490,1715258534679,-9628.6180338,0.0004,4]
[326698491,1715258534723,-500.0,0.00041095,30]
[326698492,1715258534767,-3024.05,0.00041095,30]
[326698493,1715258534825,189.65271409,0.00018265,2]
[326698494,1715258539491,2000.0,0.00035516,2]
[326698495,1715258541448,50000.0,0.0002,2]
[326698496,1715258571942,-2736.960981,0.0002,2]
[326698497,1715258571988,-1631.5481692,0.00020912,2]
[326698498,1715258572036,-189.65271409,0.00020912,2]
[326698499,1715258572085,-1493.11557101,0.00020912,2]
[326698500,1715258572131,-67507.49755129,0.00020912,2]
[326698501,1715258572177,-41680.0,0.00020913,2]
[326698502,1715258572224,-3967.59701801,0.00021,2]
[326698503,1715258572273,-757.7563862,0.00025,2]
[326698504,1715258572319,-186.81844012,0.00027,2]
[326698505,1715258572365,-424.50332659,0.00028,2]
[326698506,1715258572411,-154.69061876,0.0003,4]
[326698507,1715258573677,714.82665538,0.00023,2]
[326698508,1715258581510,400.02877114,0.00025,2]
[326698509,1715258582803,757.7563862,0.00025,2]
[326698510,1715258584174,30189.85778992,0.00020913,2]
[326698511,1715258597134,-41680.0,0.00020913,2]
[326698512,1715258597181,-203.73596024,0.00020913,2]
[326698513,1715258597225,-789.90880433,0.00020913,2]
[326698514,1715258597269,-189.65271409,0.00020913,2]
[326698515,1715258597315,-3967.59701801,0.00021,2]
[326698516,1715258606603,174.79059791,0.00020913,2]
[326698517,1715258612767,411.54248705,0.00020913,2]
[326698518,1715258613110,621.40986811,0.00021,2]
[326698519,1715258614389,38078.82999347,0.00020913,2]
[326698520,1715258616876,189.65271409,0.00020913,2]
[326698521,1715258630750,411.54248705,0.00020913,2]
[326698522,1715258634869,189.65271409,0.00020913,2]
[326698523,1715258647986,155.21834635,0.00020913,2]
[326698524,1715258648575,154.76784823,0.00020913,2]
[326698525,1715258648789,411.54248705,0.00020913,2]
[326698526,1715258649758,236.56307163,0.00020913,2]
[326698527,1715258650882,189.65271409,0.00020913,2]
[326698528,1715258652798,309.2161094,0.00020913,2]
[326698529,1715258653992,154.94505041,0.00020913,2]
[326698530,1715258654059,379.91489838,0.00020913,2]
[326698531,1715258654322,696.23986202,0.00020913,2]
[326698532,1715258657610,154.72324417,0.00020913,2]
[326698533,1715258658613,-1531.72254174,0.00043753,120]
[326698534,1715258658675,-160.0,0.00043753,30]
[326698535,1715258664746,411.54248705,0.00020913,2]
[326698536,1715258668880,189.65271409,0.00020913,2]
[326698537,1715258677866,1691.18055078,0.00020913,2]
[326698538,1715258686753,411.54248705,0.00020913,2]
[326698539,1715258688879,189.65271409,0.00020913,2]
[326698540,1715258704787,411.54248705,0.00020913,2]
[326698541,1715258704879,189.65271409,0.00020913,2]
[326698542,1715258722765,411.54248705,0.00020913,2]
[326698543,1715258724877,272.29749945,0.00020913,2]
[326698544,1715258726285,2086.15678154,0.00020913,2]
[326698545,1715258733475,281.09538641,0.00020913,2]
[326698546,1715258734022,154.77323484,0.00020913,2]
[326698547,1715258742792,411.54248705,0.00020913,2]
[326698548,1715258749797,1091.87119292,0.00020913,2]
[326698549,1715258756029,385.580623,0.0001589,2]
[326698550,1715258762775,411.54248705,0.00020913,2]
[326698551,1715258778771,411.54248705,0.00020913,2]
[326698552,1715258798817,411.54248705,0.00020913,2]
[326698553,1715258799202,196.23042848,0.00020913,2]
[326698554,1715258814772,212.4854684,0.00020913,2]
[326698555,1715258876111,155.97528981,0.00020913,2]
[326698556,1715258933803,-166.666668,0.00021644,2]
[326698557,1715258933848,-306.42025241,0.000219,2]
[326698558,1715258933894,-159.42165086,0.00022,2]
[326698559,1715258933942,-385.580623,0.00022264,2]
[326698560,1715258933989,-714.82665538,0.00023,2]
[326698561,1715258934038,-320.68043693,0.00025,2]
[326698562,1715258934088,-400.02877114,0.00025,2]
[326698563,1715258934135,-757.7563862,0.00025,2]
[326698564,1715258934183,-190.05602608,0.00025,2]
[326698565,1715258934233,-166.666666,0.00026577,2]
[326698566,1715258934282,-186.81844012,0.00027,2]
[326698567,1715258934332,-166.666666,0.00027301,2]
[326698568,1715258934380,-200.0,0.00027553,15]
[326698569,1715258934427,-221.16623315,0.00028,2]
[326698570,1715258934474,-166.666666,0.00028026,2]
[326698571,1715258934523,-385.580623,0.00028637,2]
[326698572,1715258934572,-166.666666,0.0002875,2]
[326698573,1715258934631,-166.666666,0.00029475,2]
[326698574,1715258934683,-17194.87408336,0.0003,10]
[326698575,1715258934732,-154.69061876,0.0003,4]
[326698576,1715258934786,-237.77204166,0.0003,4]
[326698577,1715258934837,-309.13439283,0.0003,4]
[326698578,1715258934887,-172.0,0.0003,2]
[326698579,1715258934937,-166.666666,0.000302,2]
[326698580,1715258934986,-639.42689636,0.00032,4]
[326698581,1715258935036,-235.71361189,0.0003224,120]
[326698582,1715258935086,-172.0,0.00033,2]
[326698583,1715258935194,-466.94535979,0.00034,4]
[326698584,1715258935244,-214.86476744,0.00035,4]
[326698585,1715258935292,-322.07196136,0.00035,30]
[326698586,1715258935340,-5926.67301087,0.00035,4]
[326698587,1715258935385,-854.9131085,0.00035,2]
[326698588,1715258935432,-385.580623,0.00035011,2]
[326698589,1715258935479,-55555.0,0.00035516,5]
[326698590,1715258935526,-163.0595282,0.0003569,2]
[326698591,1715258935572,-212.00763837,0.0003589,2]
[326698592,1715258935622,-172.0,0.00036,2]
[326698593,1715258935669,-187.27372221,0.0003663,3]
[326698594,1715258935716,-2829.42645,0.00037,2]
[326698595,1715258935763,-295.88177251,0.0004,15]
[326698596,1715258935810,-5349.232241,0.0004,4]
[326698597,1715258935857,-356.76011624,0.0004,4]
[326698598,1715258935904,-22913.65,0.00041065,3]
[326698599,1715258935954,-27496.38,0.00041075,3]
[326698600,1715258936002,-32995.65,0.00041085,3]
[326698601,1715258936049,-325.56188148,0.00041095,30]
[326698602,1715258936097,-2898.05,0.00041095,30]
[326698603,1715258936142,-500.0,0.00041095,30]
[326698604,1715258936191,-376.37552718,0.00041095,30]
[326698605,1715258936240,-488.79995219,0.00041095,30]
[326698606,1715258936285,-500.0,0.00041095,30]
[326698607,1715258936332,-500.0,0.00041095,30]
[326698608,1715258936378,-500.0,0.00041095,30]
[326698609,1715258936424,-500.0,0.00041095,30]
[326698610,1715258936469,-500.0,0.00041095,30]
[326698611,1715258936515,-513.11566708,0.00041095,30]
[326698612,1715258936562,-961.27,0.00041095,30]
[326698613,1715258936608,-500.0,0.00041095,30]
[326698614,1715258936657,-300.0,0.00041095,7]
[326698615,1715258936707,-194.18096837,0.00041095,30]
[326698616,1715258936755,-500.0,0.00041095,30]
[326698617,1715258936805,-500.0,0.00041095,30]
[326698618,1715258936856,-500.0,0.00041095,30]
[326698619,1715258936922,-500.0,0.00041095,30]
[326698620,1715258937050,-504.324578,0.00041095,30]
[326698621,1715258937131,-506.02,0.00041095,30]
[326698622,1715258937180,-500.0,0.00041095,30]
[326698623,1715258937228,-554.93,0.00041095,30]
[326698624,1715258937276,-500.0,0.00041095,30]
[326698625,1715258937325,-500.0,0.00041095,30]
[326698626,1715258937373,-946.1,0.00041095,30]
[326698627,1715258937422,-500.0,0.00041095,30]
[326698628,1715258937473,-405.41768662,0.00041095,30]
[326698629,1715258937520,-348.00059697,0.00041095,30]
[326698630,1715258937568,-500.0,0.00041095,30]
[326698631,1715258937617,-1103.16,0.00041095,30]
[326698632,1715258937667,-500.0,0.00041095,30]
[326698633,1715258937715,-500.0,0.00041095,30]
[326698634,1715258937763,-1036.04,0.00041095,30]
[326698635,1715258937812,-500.0,0.00041095,30]
[326698636,1715258937860,-500.0,0.00041095,30]
[326698637,1715258937909,-2898.05,0.00041369,31]
[326698638,1715258937957,-503.82003601,0.00041369,31]
[326698639,1715258938074,-500.0,0.00041369,31]
[326698640,1715258938124,-500.0,0.00041369,31]
[326698641,1715258938173,-500.0,0.00041369,31]
[326698642,1715258938222,-500.0,0.00041369,31]
[326698643,1715258938277,-500.0,0.00041369,31]
[326698644,1715258938326,-961.27,0.00041369,31]
[326698645,1715258938374,-500.0,0.00041369,31]
[326698646,1715258938421,-300.0,0.00041369,7]
[326698647,1715258938469,-500.0,0.00041369,31]
[326698648,1715258938518,-500.0,0.00041369,31]
[326698649,1715258938569,-500.0,0.00041369,31]
[326698650,1715258938622,-426.70029278,0.00041369,31]
[326698651,1715258938674,-506.02,0.00041369,31]
[326698652,1715258938721,-500.0,0.00041369,31]
[326698653,1715258938769,-554.93,0.00041369,31]
[326698654,1715258938818,-500.0,0.00041369,31]
[326698655,1715258938866,-500.0,0.00041369,31]
[326698656,1715258938918,-946.1,0.00041369,31]
[326698657,1715258938965,-500.0,0.00041369,31]
[326698658,1715258939012,-503.79275033,0.00041369,31]
[326698659,1715258939060,-1103.16,0.00041369,31]
[326698660,1715258939106,-500.0,0.00041369,31]
[326698661,1715258939152,-505.86086606,0.00041369,31]
[326698662,1715258939200,-1036.04,0.00041369,31]
[326698663,1715258939250,-500.0,0.00041369,31]
[326698664,1715258939297,-507.876161,0.00041369,31]
[326698665,1715258939345,-385.580623,0.00041384,2]
[326698666,1715258939393,-2898.05,0.00041643,32]
[326698667,1715258939437,-500.0,0.00041643,32]
[326698668,1715258939491,-500.0,0.00041643,32]
[326698669,1715258939539,-500.0,0.00041643,32]
[326698670,1715258939585,-500.0,0.00041643,32]
[326698671,1715258939639,-500.0,0.00041643,32]
[326698672,1715258939688,-961.27,0.00041643,32]
[326698673,1715258939738,-500.0,0.00041643,32]
[326698674,1715258939788,-297.70467163,0.00041643,7]
[326698675,1715258939836,-500.0,0.00041643,32]
[326698676,1715258939884,-500.0,0.00041643,32]
[326698677,1715258939932,-500.0,0.00041643,32]
[326698678,1715258939978,-506.02,0.00041643,32]
[326698679,1715258940026,-500.0,0.00041643,32]
[326698680,1715258940074,-554.93,0.00041643,32]
[326698681,1715258940122,-500.0,0.00041643,32]
[326698682,1715258940169,-500.0,0.00041643,32]
[326698683,1715258940218,-946.1,0.00041643,32]
[326698684,1715258940274,-500.0,0.00041643,32]
[326698685,1715258940323,-1103.16,0.00041643,32]
[326698686,1715258940384,-500.0,0.00041643,32]
[326698687,1715258940433,-1036.04,0.00041643,32]
[326698688,1715258940483,-500.0,0.00041643,32]
[326698689,1715258940533,-2898.05,0.00041917,33]
[326698690,1715258940580,-500.0,0.00041917,33]
[326698691,1715258940636,-500.0,0.00041917,33]
[326698692,1715258940683,-500.0,0.00041917,33]
[326698693,1715258940732,-500.0,0.00041917,33]
[326698694,1715258940780,-500.0,0.00041917,33]
[326698695,1715258940829,-961.27,0.00041917,33]
[326698696,1715258940875,-500.0,0.00041917,33]
[326698697,1715258940922,-500.0,0.00041917,33]
[326698698,1715258940970,-500.0,0.00041917,33]
[326698699,1715258941017,-313.09362757,0.00041917,33]
[326698700,1715258941067,-506.02,0.00041917,33]
[326698701,1715258941117,-500.0,0.00041917,33]
[326698702,1715258941163,-554.93,0.00041917,33]
[326698703,1715258941215,-500.0,0.00041917,33]
[326698704,1715258941262,-500.0,0.00041917,33]
[326698705,1715258941309,-946.1,0.00041917,33]
[326698706,1715258941356,-512.03064039,0.00041917,33]
[326698707,1715258941406,-1103.16,0.00041917,33]
[326698708,1715258941457,-500.0,0.00041917,33]
[326698709,1715258941506,-1036.04,0.00041917,33]
[326698710,1715258941553,-500.0,0.00041917,33]